bitfinex/quotes_BTCUSD_20251207
["timestamp","ask_amount","ask_price","bid_price","bid_amount"]
[1765129439748,0.16474287,90927.0,90926.0,0.53040909]
[1765129439958,0.18234287,90927.0,90926.0,0.53040909]
[1765129440947,0.1971563,90927.0,90926.0,0.53040909]
[1765129441921,0.1795563,90927.0,90926.0,0.53040909]
[1765129442132,0.1971563,90927.0,90926.0,0.53040909]
[1765129442726,0.18234287,90927.0,90926.0,0.53040909]
[1765129442907,0.08309287,90927.0,90926.0,0.53040909]
[1765129443537,0.18043287,90927.0,90926.0,0.53040909]
[1765129443873,0.08309287,90927.0,90926.0,0.53040909]
[1765129444079,0.0196,90927.0,90926.0,0.91473909]
[1765129444295,0.0196,90927.0,90926.0,0.93694307]
[1765129445126,0.002,90927.0,90926.0,0.93494307]
[1765129445338,0.0176,90927.0,90926.0,0.93494307]
[1765129445533,0.0176,90927.0,90926.0,0.94194307]
[1765129445758,0.0176,90927.0,90926.0,0.88061307]
[1765129446022,0.0176,90927.0,90926.0,1.03205307]
[1765129446223,0.00023614,90929.0,90928.0,0.02220398]
[1765129446422,0.01783614,90929.0,90928.0,0.08353398]
[1765129446835,0.01783614,90929.0,90928.0,0.49664398]
[1765129447037,0.01783614,90929.0,90928.0,0.5350917]
[1765129447245,0.01883614,90929.0,90928.0,0.5350917]
[1765129447648,0.01883614,90929.0,90928.0,0.5390917]
[1765129448005,0.01883614,90929.0,90928.0,0.49664398]
[1765129448168,0.01883614,90929.0,90928.0,0.41653398]
[1765129448377,0.01883614,90929.0,90928.0,0.45496475]
[1765129448378,0.01783614,90929.0,90928.0,0.45496475]
[1765129448785,0.01783614,90929.0,90928.0,0.45596475]
[1765129449551,0.01783614,90929.0,90928.0,0.50764398]
[1765129451084,0.01783614,90929.0,90928.0,0.41753398]
[1765129453294,0.01783614,90929.0,90928.0,0.45652587]
[1765129453710,0.01783614,90929.0,90928.0,0.54663587]
[1765129454945,0.01783614,90929.0,90928.0,0.50822398]
[1765129457088,0.01783614,90929.0,90928.0,0.52888172]
[1765129457295,0.01783614,90929.0,90928.0,0.65152398]
[1765129457423,0.01783614,90929.0,90928.0,0.65052398]
[1765129457633,0.01783614,90929.0,90928.0,0.53821]
[1765129457833,0.01783614,90929.0,90928.0,0.50050398]
[1765129458029,0.01783614,90929.0,90928.0,0.56241398]
[1765129458669,0.01783614,90929.0,90928.0,0.65252398]
[1765129459996,0.01783614,90929.0,90928.0,0.53888606]
[1765129460202,0.01783614,90929.0,90928.0,0.50050398]
[1765129460403,0.01783614,90929.0,90928.0,0.52929519]
[1765129460709,0.01783614,90929.0,90928.0,0.50050398]
[1765129461133,0.01783614,90929.0,90928.0,0.49250398]
[1765129461295,0.01783614,90929.0,90928.0,0.34720398]
[1765129461500,0.17667614,90929.0,90928.0,0.02420398]
[1765129461955,0.21995424,90928.0,90927.0,0.02220398]
[1765129462182,0.31616711,90928.0,90927.0,0.02220398]
[1765129462381,0.38040711,90928.0,90927.0,0.02220398]
[1765129462863,0.38040711,90928.0,90926.0,0.52840909]
[1765129463083,0.10854,90927.0,90926.0,0.52840909]
[1765129463470,0.11015287,90927.0,90926.0,0.52840909]
[1765129464484,0.11015287,90927.0,90926.0,0.52940909]
[1765129464817,0.11015287,90927.0,90926.0,0.55161307]
[1765129466698,0.11015287,90927.0,90926.0,0.52940909]
[1765129469121,0.11015287,90927.0,90926.0,0.55161307]
[1765129471738,0.11015287,90927.0,90926.0,0.52940909]
[1765129473119,0.11015287,90927.0,90926.0,0.52840909]
[1765129474919,0.1249663,90927.0,90926.0,0.52840909]
[1765129477918,0.1259663,90927.0,90926.0,0.52840909]
[1765129478912,0.01099964,90912.0,90909.0,0.00039474]
[1765129479113,0.3304978,90910.0,90909.0,0.00039474]
[1765129479516,0.4250978,90910.0,90909.0,0.00039474]
[1765129480171,0.4250978,90910.0,90909.0,0.00139474]
[1765129480488,0.4250978,90910.0,90909.0,0.00039474]
[1765129480685,0.4270978,90910.0,90909.0,0.00039474]
[1765129481781,0.4280978,90910.0,90909.0,0.00039474]
[1765129490822,0.4280978,90910.0,90909.0,0.02259872]
[1765129491253,0.3510978,90910.0,90909.0,0.02259872]
[1765129491528,0.3480978,90910.0,90909.0,0.23159872]
[1765129491745,0.3490978,90910.0,90909.0,0.23159872]
[1765129491939,0.2848578,90910.0,90909.0,0.23159872]
[1765129492079,0.2838578,90910.0,90909.0,0.23159872]
[1765129492474,0.2848578,90910.0,90909.0,0.23259872]
[1765129492886,0.4406678,90910.0,90909.0,0.23259872]
[1765129493680,0.4406678,90910.0,90909.0,0.21039474]
[1765129494169,0.4406678,90910.0,90909.0,0.23259872]
[1765129495782,0.4406678,90910.0,90909.0,0.21039474]
[1765129498150,0.50319079,90910.0,90909.0,0.21039474]
[1765129498891,0.50219079,90910.0,90909.0,0.21039474]
[1765129499380,0.52439477,90910.0,90909.0,0.21039474]
[1765129499506,0.50219079,90910.0,90909.0,0.21039474]
[1765129499711,0.52439477,90910.0,90909.0,0.21039474]
[1765129500401,0.52539477,90910.0,90909.0,0.21039474]
[1765129500898,0.52439477,90910.0,90909.0,0.20939474]
[1765129501115,0.50419079,90910.0,90909.0,0.20939474]
[1765129501523,0.50219079,90910.0,90909.0,0.20939474]
[1765129501734,0.50319079,90910.0,90909.0,0.20939474]
[1765129501965,0.50419079,90910.0,90909.0,0.20939474]
[1765129502189,0.50619079,90910.0,90909.0,0.20939474]
[1765129502622,0.4436678,90910.0,90909.0,0.20939474]
[1765129502820,0.4260678,90910.0,90909.0,0.20939474]
[1765129503025,0.4436678,90910.0,90909.0,0.20939474]
[1765129503182,0.3512778,90910.0,90909.0,0.20939474]
[1765129503385,0.3316778,90910.0,90909.0,0.20939474]
[1765129503597,0.3492778,90910.0,90909.0,0.20939474]
[1765129503848,0.4436478,90910.0,90909.0,0.20939474]
[1765129504053,0.4456478,90910.0,90909.0,0.20939474]
[1765129504261,0.4446478,90910.0,90909.0,0.20939474]
[1765129504483,0.4436478,90910.0,90909.0,0.20939474]
[1765129504642,0.4446478,90910.0,90909.0,0.21039474]
[1765129504843,0.50717079,90910.0,90909.0,0.21039474]
[1765129505303,0.50617079,90910.0,90909.0,0.21039474]
[1765129505496,0.50617079,90910.0,90909.0,0.20939474]
[1765129505731,0.50717079,90910.0,90909.0,0.20939474]
[1765129506492,0.50817079,90910.0,90909.0,0.20939474]
[1765129506875,0.50717079,90910.0,90909.0,0.20939474]
[1765129507083,0.50617079,90910.0,90909.0,0.20939474]
[1765129507286,0.51017079,90910.0,90909.0,0.20939474]
[1765129507511,0.50817079,90910.0,90909.0,0.20939474]
[1765129508296,0.51017079,90910.0,90909.0,0.20939474]
[1765129511345,0.53237477,90910.0,90909.0,0.20939474]
[1765129512240,0.63180982,90910.0,90909.0,0.20939474]
[1765129513806,0.22006315,90883.0,90879.0,0.028818]
[1765129514008,0.22008253,90875.0,90874.0,0.028818]
[1765129514419,0.38254253,90875.0,90874.0,0.028818]
[1765129514623,0.38254253,90875.0,90867.0,0.03838208]
[1765129514624,0.38254253,90875.0,90873.0,0.028818]
[1765129514904,0.38254253,90875.0,90870.0,0.00099999]
[1765129514905,0.22008737,90873.0,90871.0,0.028818]
[1765129515081,0.01100424,90874.0,90873.0,0.02220398]
[1765129515298,0.02899793,90874.0,90873.0,0.02220398]
[1765129516315,0.02899793,90874.0,90873.0,0.40753398]
[1765129516316,0.01799369,90874.0,90873.0,0.40753398]
[1765129516531,0.01799369,90874.0,90873.0,0.34520398]
[1765129516807,0.01799369,90874.0,90873.0,0.34720398]
[1765129517016,0.01799369,90874.0,90873.0,0.35620398]
[1765129517230,0.18045369,90874.0,90873.0,0.011]
[1765129517776,0.18206656,90874.0,90873.0,0.011]
[1765129518575,0.18206656,90874.0,90873.0,0.009]
[1765129518858,0.08231656,90874.0,90873.0,0.03220398]
[1765129519068,0.08231656,90874.0,90873.0,0.02320398]
[1765129519349,0.30078864,90874.0,90873.0,0.02920398]
[1765129519560,0.22047864,90874.0,90873.0,0.02920398]
[1765129519712,0.23807864,90874.0,90873.0,0.001]
[1765129520115,0.01799369,90874.0,90873.0,0.07033]
[1765129520320,0.00039369,90874.0,90873.0,0.41553398]
[1765129520506,0.01799369,90874.0,90873.0,0.44447356]
[1765129520713,0.01799369,90874.0,90873.0,0.48344]
[1765129520962,0.01799369,90874.0,90873.0,0.50564398]
[1765129521120,0.01799369,90874.0,90873.0,0.53867484]
[1765129521747,0.01799369,90874.0,90873.0,0.53767484]
[1765129522169,0.01799369,90874.0,90873.0,0.53067484]
[1765129522553,0.01799369,90874.0,90873.0,0.53767484]
[1765129522999,0.01799369,90874.0,90873.0,0.53967484]
[1765129523572,0.01799369,90874.0,90873.0,0.44956484]
[1765129523787,0.01799369,90874.0,90873.0,0.41653398]
[1765129524629,0.01799369,90874.0,90873.0,0.39433]
[1765129524922,0.01799369,90874.0,90873.0,0.03120398]
[1765129525149,0.01799369,90874.0,90873.0,0.009]
[1765129525150,0.18045369,90874.0,90873.0,0.009]
[1765129525567,0.18045369,90874.0,90873.0,0.007]
[1765129525760,0.22008737,90873.0,90871.0,0.02893398]
[1765129525943,0.01100448,90872.0,90869.0,0.02893398]
[1765129526142,0.01644,90870.0,90869.0,0.02893398]
[1765129526395,0.28275464,90870.0,90869.0,0.02893398]
[1765129526602,0.2201019,90867.0,90866.0,0.02893398]
[1765129526938,0.01100545,90864.0,90862.0,0.03857299]
[1765129527141,0.01100545,90864.0,90860.0,0.02320397]
[1765129527142,0.10893,90861.0,90860.0,0.03857299]
[1765129527493,0.10893,90861.0,90855.0,0.1473]
[1765129527494,0.22012855,90856.0,90855.0,0.17626623]
[1765129527682,0.23254855,90856.0,90855.0,0.17626623]
[1765129527880,0.23254855,90856.0,90855.0,0.17626353]
[1765129528281,0.33229855,90856.0,90855.0,0.1473]
[1765129529218,0.33229855,90856.0,90852.0,0.02896353]
[1765129529219,0.22013582,90853.0,90852.0,0.02896353]
[1765129529420,0.22013582,90853.0,90851.0,0.02896353]
[1765129529627,0.0176,90852.0,90851.0,0.02896353]
[1765129529779,0.08031,90852.0,90851.0,0.02896353]
[1765129529987,0.08031,90852.0,90846.0,0.36157299]
[1765129529988,0.23114769,90851.0,90846.0,0.02896353]
[1765129530193,0.22016005,90843.0,90841.0,0.02896353]
[1765129530408,0.23116805,90843.0,90840.0,0.02896353]
[1765129530604,0.2201649,90841.0,90839.0,0.02896353]
[1765129530810,0.2201649,90841.0,90837.0,0.02896353]
[1765129530811,0.22016975,90839.0,90837.0,0.02896353]
[1765129531013,0.22018187,90834.0,90833.0,0.02896353]
[1765129531223,0.22018187,90834.0,90833.0,0.02220398]
[1765129531424,0.22018187,90834.0,90833.0,0.00011836]
[1765129531600,0.22018187,90834.0,90833.0,0.02232234]
[1765129532326,0.38264187,90834.0,90833.0,0.00211836]
[1765129534506,0.38264187,90834.0,90833.0,0.00011836]
[1765129534935,0.38464187,90834.0,90833.0,0.00011836]
[1765129536126,0.38364187,90834.0,90833.0,0.00011836]
[1765129536548,0.38664187,90834.0,90833.0,0.00011836]
[1765129538625,0.44916486,90834.0,90833.0,0.00011836]
[1765129539064,0.47136884,90834.0,90833.0,0.00011836]
[1765129539454,0.47036884,90834.0,90833.0,0.00011836]
[1765129540669,0.46936884,90834.0,90833.0,0.00011836]
[1765129541077,0.47036884,90834.0,90833.0,0.00011836]
[1765129541507,0.46936884,90834.0,90833.0,0.00011836]
[1765129541710,0.45116486,90834.0,90833.0,0.00011836]
[1765129543336,0.56086992,90834.0,90833.0,0.00011836]
[1765129543537,0.56086992,90834.0,90821.0,0.00341802]
[1765129543538,0.28273395,90822.0,90821.0,0.00341802]
[1765129543658,0.36324395,90822.0,90821.0,0.00341802]
[1765129543857,0.45634395,90822.0,90821.0,0.00341802]
[1765129544683,0.45734395,90822.0,90821.0,0.00341802]
[1765129544887,0.45934395,90822.0,90821.0,0.00341802]
[1765129548455,0.48154793,90822.0,90821.0,0.00341802]
[1765129548657,0.52952104,90822.0,90821.0,0.00341802]
[1765129548930,0.28276062,90811.0,90810.0,0.0004]
[1765129549148,0.28276062,90811.0,90773.0,0.00440957]
[1765129549149,0.2203274,90774.0,90773.0,0.00440957]
[1765129549365,0.2203274,90774.0,90766.0,0.02896353]
[1765129549366,0.22034337,90768.0,90766.0,0.02220398]
[1765129549576,0.10968,90767.0,90766.0,0.00011832]
[1765129549784,0.20278,90767.0,90766.0,0.00011832]
[1765129550466,0.04677,90767.0,90766.0,0.00011832]
[1765129550676,0.24894428,90774.0,90769.0,0.01101697]
[1765129550898,0.2203172,90779.0,90772.0,0.01101661]
[1765129550899,0.0176,90773.0,90772.0,0.01101661]
[1765129551104,0.0176,90773.0,90772.0,0.60563259]
[1765129551309,0.01101564,90780.0,90779.0,0.02220398]
[1765129551546,0.01101491,90786.0,90780.0,0.23132605]
[1765129551765,0.0176,90785.0,90784.0,0.01101515]
[1765129551971,0.0176,90785.0,90784.0,0.03321913]
[1765129552184,0.0176,90785.0,90784.0,0.58826315]
[1765129552393,0.1107,90785.0,90780.0,0.00099999]
[1765129552594,0.06437,90785.0,90783.0,0.02220398]
[1765129552820,0.0176,90785.0,90783.0,0.02220398]
[1765129553218,0.0176,90785.0,90784.0,0.25023]
[1765129553448,0.0176,90785.0,90784.0,0.139991]
[1765129553652,0.01101539,90782.0,90773.0,0.01101649]
[1765129553858,0.01101418,90792.0,90788.0,0.01101467]
[1765129554263,0.01101442,90790.0,90789.0,0.02220398]
[1765129554470,0.0176,90791.0,90790.0,0.02220398]
[1765129554820,0.0176,90791.0,90790.0,0.02312102]
[1765129555383,0.0176,90791.0,90790.0,0.48725859]
[1765129555560,0.06607,90791.0,90790.0,0.48725859]
[1765129555856,0.06607,90791.0,90790.0,0.45068059]
[1765129556015,0.06607,90791.0,90790.0,0.23039202]
[1765129556221,0.06707,90791.0,90790.0,0.23039202]
[1765129556426,0.06707,90791.0,90790.0,0.23139202]
[1765129556681,0.13302,90791.0,90790.0,0.00191704]
[1765129556852,0.23138,90791.0,90790.0,0.02412102]
[1765129557032,0.13302,90791.0,90790.0,0.02412102]
[1765129557228,0.13302,90791.0,90790.0,0.35304959]
[1765129557794,0.13302,90791.0,90790.0,0.13276102]
[1765129558290,0.0186,90791.0,90790.0,0.13276102]
[1765129558649,0.23138,90791.0,90790.0,0.00191704]
[1765129558872,0.13302,90791.0,90790.0,0.00191704]
[1765129559031,0.0186,90791.0,90790.0,0.00191704]
[1765129559923,0.0186,90791.0,90790.0,0.22220561]
[1765129560125,0.0186,90791.0,90790.0,0.00191704]
[1765129560319,0.40973615,90791.0,90790.0,0.00191704]
[1765129560665,0.18945,90791.0,90790.0,0.00191704]
[1765129560866,0.0186,90791.0,90790.0,0.00191704]
[1765129561067,0.0186,90791.0,90790.0,0.93510402]
[1765129561401,0.0186,90791.0,90790.0,1.02521402]
[1765129561602,0.0186,90791.0,90790.0,1.05417755]
[1765129561779,0.0186,90791.0,90790.0,1.02521402]
[1765129561994,0.0176,90791.0,90790.0,0.93510402]
[1765129562195,0.0176,90791.0,90790.0,0.70523402]
[1765129562394,0.0176,90791.0,90790.0,0.70623402]
[1765129562644,0.0176,90791.0,90790.0,0.56542602]
[1765129562852,0.0176,90791.0,90790.0,0.53919702]
[1765129563046,0.0176,90791.0,90790.0,0.52619702]
[1765129563206,0.0176,90791.0,90790.0,0.58846702]
[1765129563404,0.0176,90791.0,90790.0,0.53719702]
[1765129563611,0.0176,90791.0,90790.0,0.57580883]
[1765129564039,0.06607,90791.0,90790.0,0.33491704]
[1765129564198,0.06607,90791.0,90790.0,0.49031785]
[1765129564395,0.23038,90791.0,90790.0,0.04088994]
[1765129564812,0.13202,90791.0,90790.0,0.04088994]
[1765129565012,0.13202,90791.0,90790.0,0.01191704]
[1765129565235,0.13202,90791.0,90790.0,0.04088994]
[1765129565438,0.13202,90791.0,90790.0,0.03888994]
[1765129565646,0.13202,90791.0,90790.0,0.03988994]
[1765129565855,0.13202,90791.0,90790.0,0.03088994]
[1765129566259,0.0176,90791.0,90790.0,0.33191704]
[1765129566714,0.0176,90791.0,90790.0,1.15401202]
[1765129566912,0.0176,90791.0,90790.0,0.35412102]
[1765129567319,0.0176,90791.0,90790.0,0.47422702]
[1765129567875,0.0176,90791.0,90790.0,0.35412102]
[1765129568288,0.0176,90791.0,90790.0,0.39273283]
[1765129568486,0.0176,90791.0,90790.0,0.51334683]
[1765129568793,0.0176,90791.0,90790.0,0.39273283]
[1765129568988,0.06607,90791.0,90790.0,0.39273283]
[1765129569689,0.23038,90791.0,90790.0,0.33191704]
[1765129570208,0.23038,90791.0,90790.0,0.00891704]
[1765129571009,0.23038,90791.0,90790.0,0.00791704]
[1765129571525,0.23038,90791.0,90790.0,0.00191704]
[1765129571873,0.23199287,90791.0,90790.0,0.00182704]
[1765129571984,0.29451586,90791.0,90790.0,0.00182704]
[1765129573044,0.22032639,90775.0,90770.0,0.05221096]
[1765129573261,0.11494,90771.0,90770.0,0.02900699]
[1765129573433,0.11494,90771.0,90769.0,0.02900699]
[1765129573590,0.09649,90770.0,90768.0,0.02900699]
[1765129573934,0.09649,90770.0,90769.0,0.00062148]
[1765129574110,0.28100141,90771.0,90769.0,0.13595448]
[1765129574316,0.28100141,90771.0,90768.0,0.02900699]
[1765129574317,0.22033954,90769.0,90768.0,0.02900699]
[1765129574519,0.22094954,90769.0,90768.0,0.02900699]
[1765129574899,0.23196651,90769.0,90766.0,0.00011832]
[1765129575537,0.23196651,90769.0,90766.0,0.02912531]
[1765129575538,0.23135651,90769.0,90766.0,0.02912531]
[1765129575941,0.01101673,90771.0,90770.0,0.41080998]
[1765129576142,0.02857673,90771.0,90770.0,0.36607698]
[1765129577145,0.02857673,90771.0,90770.0,0.30646898]
[1765129577665,0.01756,90771.0,90770.0,0.37062898]
[1765129577865,0.01101539,90782.0,90776.0,0.01101612]
[1765129578175,0.01101503,90785.0,90784.0,0.02220398]
[1765129578376,0.02857503,90785.0,90784.0,0.02220398]
[1765129579076,0.01101527,90783.0,90782.0,0.02220398]
[1765129579423,0.02857503,90785.0,90784.0,0.02320398]
[1765129579424,0.01756,90785.0,90784.0,0.02320398]
[1765129579623,0.01756,90785.0,90784.0,0.08736398]
[1765129580031,0.01756,90785.0,90784.0,0.001]
[1765129580244,0.01756,90785.0,90784.0,0.08736398]
[1765129580705,0.01756,90785.0,90784.0,0.02320398]
[1765129580906,0.01756,90785.0,90784.0,0.08736398]
[1765129581329,0.01756,90785.0,90784.0,0.21156759]
[1765129581537,0.01756,90785.0,90784.0,0.18256398]
[1765129581962,0.01756,90785.0,90784.0,0.18356398]
[1765129582071,0.01756,90785.0,90784.0,0.18256398]
[1765129582277,0.01756,90785.0,90784.0,0.02320398]
[1765129582490,0.01756,90785.0,90784.0,0.09136398]
[1765129582690,0.01756,90785.0,90784.0,0.93243898]
[1765129582891,0.01756,90785.0,90784.0,0.57053898]
[1765129583146,0.01756,90785.0,90784.0,0.55576998]
[1765129583367,0.01756,90785.0,90784.0,0.48744098]
[1765129583518,0.01756,90785.0,90783.0,0.1473]
[1765129583519,0.22030313,90784.0,90783.0,0.4703]
[1765129583731,0.22030313,90784.0,90783.0,0.60455398]
[1765129584115,0.01756,90785.0,90783.0,0.64651]
[1765129584316,0.01756,90785.0,90784.0,0.35422403]
[1765129585268,0.01756,90785.0,90784.0,0.33202005]
[1765129585469,0.01756,90785.0,90784.0,0.44742403]
[1765129585675,0.01101479,90787.0,90786.0,0.02220398]
[1765129585879,0.02857479,90787.0,90786.0,0.08636398]
[1765129586216,0.01756,90787.0,90786.0,0.21054303]
[1765129586356,0.01756,90787.0,90786.0,1.06339298]
[1765129586743,0.01756,90787.0,90786.0,1.10606446]
[1765129586938,0.01756,90787.0,90786.0,1.10206446]
[1765129587152,0.01756,90787.0,90786.0,0.77599846]
[1765129587406,0.01756,90787.0,90786.0,0.83252698]
[1765129588371,0.01756,90787.0,90786.0,1.06082526]
[1765129590235,0.01756,90787.0,90786.0,1.09949674]
[1765129590444,0.04965,90811.0,90786.0,1.09949674]
[1765129590445,0.01100982,90828.0,90820.0,0.00099999]
[1765129590650,0.01101006,90826.0,90825.0,0.02220398]
[1765129590887,0.01101006,90826.0,90824.0,0.02220398]
[1765129590888,0.22020368,90825.0,90824.0,0.02220398]
[1765129591100,0.01101054,90822.0,90819.0,0.0289499]
[1765129591302,0.22023036,90814.0,90811.0,0.0289499]
[1765129591508,0.22025946,90802.0,90801.0,0.0289499]
[1765129591719,0.30796243,90802.0,90799.0,0.05115388]
[1765129591890,0.30796243,90802.0,90788.0,0.23130707]
[1765129591891,0.22027402,90796.0,90795.0,0.02220398]
[1765129592090,0.22027402,90796.0,90795.0,0.0223223]
[1765129592297,0.22027402,90796.0,90795.0,0.0512515]
[1765129592505,0.22027159,90797.0,90795.0,0.0512515]
[1765129592674,0.01101345,90798.0,90795.0,0.0223223]
[1765129592871,0.22027159,90797.0,90795.0,0.0223223]
[1765129593071,0.22027159,90797.0,90795.0,0.00311832]
[1765129593271,0.22027159,90797.0,90796.0,0.02220398]
[1765129594010,0.28624159,90797.0,90795.0,0.00011832]
[1765129594328,0.28624159,90797.0,90796.0,0.02320398]
[1765129594562,0.22027159,90797.0,90796.0,0.02320398]
[1765129594961,0.22027159,90797.0,90796.0,0.02220398]
[1765129595387,0.01101321,90800.0,90797.0,0.01101357]
[1765129595592,0.01101321,90800.0,90799.0,0.06416]
[1765129595794,0.01756,90802.0,90801.0,0.02220398]
[1765129596015,0.01756,90802.0,90801.0,0.82647298]
[1765129596153,0.01756,90802.0,90801.0,0.96027285]
[1765129596768,0.01756,90802.0,90801.0,0.92167298]
[1765129597197,0.01756,90802.0,90801.0,0.899469]
[1765129597401,0.01756,90802.0,90801.0,0.92167298]
[1765129598018,0.01756,90802.0,90801.0,0.92267298]
[1765129598216,0.01756,90802.0,90801.0,0.96118743]
[1765129598480,0.01956,90802.0,90801.0,0.96018743]
[1765129598657,0.01756,90802.0,90801.0,0.3740936]
[1765129598799,0.01756,90802.0,90801.0,0.55180898]
[1765129599000,0.01756,90802.0,90801.0,0.55280898]
[1765129599198,0.01756,90802.0,90801.0,0.326]
[1765129599764,0.01756,90802.0,90801.0,0.325]
[1765129600057,0.01856,90802.0,90801.0,0.323]
[1765129600361,0.01856,90802.0,90801.0,0.324]
[1765129600821,0.18862343,90802.0,90801.0,0.323]
[1765129601018,0.17381,90802.0,90801.0,0.323]
[1765129601221,0.07669,90802.0,90801.0,0.324]
[1765129601590,0.18882343,90802.0,90801.0,0.001]
[1765129601764,0.09350343,90802.0,90801.0,0.001]
[1765129601967,0.07869,90802.0,90801.0,0.02320398]
[1765129602197,0.01956,90802.0,90801.0,0.02320398]
[1765129602928,0.07784,90802.0,90801.0,0.02320398]
[1765129603125,0.08184,90802.0,90795.0,0.00011832]
[1765129603396,0.23128261,90798.0,90797.0,0.02220398]
[1765129603772,0.23128261,90798.0,90795.0,0.00011832]
[1765129603976,0.23128261,90798.0,90797.0,0.02220398]
[1765129604405,0.23128261,90798.0,90795.0,0.00111832]
[1765129605196,0.23128261,90798.0,90795.0,0.00011832]
[1765129605344,0.10992,90796.0,90795.0,0.00011832]
[1765129605758,0.10992,90796.0,90795.0,0.00111832]
[1765129606046,0.20524,90796.0,90795.0,0.00011832]
[1765129606271,0.20524,90796.0,90795.0,0.0223223]
[1765129606433,0.10992,90796.0,90795.0,0.0223223]
[1765129607035,0.23128261,90798.0,90795.0,0.0223223]
[1765129607258,0.23128261,90798.0,90797.0,0.02220398]
[1765129608704,0.23128261,90798.0,90797.0,0.04536243]
[1765129610454,0.23128261,90798.0,90797.0,0.04636243]
[1765129611375,0.01101309,90801.0,90797.0,0.23223647]
[1765129611573,0.01101309,90801.0,90800.0,0.08555398]
[1765129611797,0.01101309,90801.0,90800.0,0.10871243]
[1765129612299,0.23127498,90801.0,90800.0,0.04536243]
[1765129613301,0.01756,90802.0,90800.0,0.08650845]
[1765129613483,0.23125192,90811.0,90810.0,0.02220398]
[1765129613683,0.24881192,90811.0,90810.0,0.04536243]
[1765129613927,0.24881192,90811.0,90810.0,0.14044243]
[1765129614696,0.24881192,90811.0,90810.0,0.07709243]
[1765129614910,0.24881192,90811.0,90810.0,0.02315845]
[1765129615326,0.25381192,90811.0,90810.0,0.02315845]
[1765129615528,0.02256,90811.0,90810.0,0.10856243]
[1765129616394,0.02256,90811.0,90810.0,0.20103243]
[1765129616820,0.02256,90811.0,90810.0,0.02315845]
[1765129617023,0.02256,90811.0,90810.0,0.04536243]
[1765129617290,0.02256,90811.0,90810.0,0.10856243]
[1765129617709,0.02356,90811.0,90810.0,0.55972825]
[1765129617929,0.02356,90811.0,90810.0,1.94383243]
[1765129618764,0.01101079,90820.0,90810.0,1.94383243]
[1765129618765,0.01101079,90820.0,90819.0,0.02220398]
[1765129618966,0.02857079,90820.0,90819.0,0.14029243]
[1765129619165,0.02857079,90820.0,90819.0,0.17888353]
[1765129620404,0.03057079,90820.0,90819.0,0.17888353]
[1765129620833,0.19923709,90820.0,90819.0,0.02315845]
[1765129621918,0.18542366,90820.0,90819.0,0.02315845]
[1765129622128,0.09521366,90820.0,90819.0,0.02315845]
[1765129622369,0.03318366,90820.0,90819.0,0.02315845]
[1765129622593,0.19823709,90820.0,90819.0,0.02315845]
[1765129622800,0.24594665,90820.0,90819.0,0.02315845]
[1765129623024,0.01101212,90809.0,90806.0,0.02894523]
[1765129623232,0.17029299,90808.0,90807.0,0.02318787]
[1765129623436,0.01756,90808.0,90807.0,0.02318787]
[1765129623646,0.01756,90808.0,90807.0,0.0521331]
[1765129623889,0.01756,90808.0,90807.0,0.02318787]
[1765129624104,0.01756,90808.0,90807.0,0.07433708]
[1765129624255,0.01756,90808.0,90807.0,0.10859185]
[1765129624640,0.01956,90808.0,90807.0,0.04539185]
[1765129625622,0.01756,90808.0,90807.0,0.08398295]
[1765129625946,0.01756,90808.0,90807.0,0.08598295]
[1765129626093,0.01756,90808.0,90807.0,0.11059185]
[1765129626291,0.01756,90808.0,90807.0,0.14918295]
[1765129626506,0.01756,90808.0,90807.0,0.15018295]
[1765129626711,0.01756,90808.0,90807.0,0.08738787]
[1765129626914,0.01756,90808.0,90807.0,0.15118295]
[1765129627134,0.01756,90808.0,90807.0,0.11159185]
[1765129627421,0.39165778,90808.0,90807.0,0.02318787]
[1765129627698,0.39165778,90808.0,90807.0,0.02818787]
[1765129628186,0.39165778,90808.0,90807.0,0.02819002]
[1765129628414,0.45418077,90808.0,90807.0,0.02819002]
[1765129628720,0.45418077,90808.0,90807.0,0.005]
[1765129628906,0.47638475,90808.0,90807.0,0.005]
[1765129629119,0.47638475,90808.0,90795.0,0.00011832]
[1765129629120,0.06252299,90796.0,90795.0,0.00011832]
[1765129629342,0.06252299,90796.0,90795.0,0.02331559]
[1765129629343,0.16075709,90796.0,90795.0,0.02331559]
[1765129629569,0.14372586,90796.0,90795.0,0.00011832]
[1765129629783,0.23393586,90796.0,90795.0,0.00011832]
[1765129630617,0.23593586,90796.0,90795.0,0.00011832]
[1765129631466,0.23793586,90796.0,90795.0,0.00011832]
[1765129631665,0.26013984,90796.0,90795.0,0.00011832]
[1765129632295,0.23793586,90796.0,90795.0,0.00011832]
[1765129634413,0.22037586,90796.0,90795.0,0.00011832]
[1765129634628,0.23793586,90796.0,90795.0,0.00011832]
[1765129636094,0.25496709,90796.0,90795.0,0.00011832]
[1765129639659,0.23740709,90796.0,90795.0,0.00011832]
[1765129639861,0.25496709,90796.0,90795.0,0.00011832]
[1765129640287,0.17541287,90796.0,90795.0,0.00011832]
[1765129640486,0.1902263,90796.0,90795.0,0.00011832]
[1765129640870,0.1000163,90796.0,90795.0,0.00011832]
[1765129641075,0.1989363,90796.0,90795.0,0.00011832]
[1765129641577,0.01956,90796.0,90795.0,0.00011832]
[1765129641789,0.01956,90796.0,90795.0,0.0223223]
[1765129642020,0.01956,90796.0,90795.0,0.0867023]
[1765129642218,0.01956,90796.0,90795.0,0.74337178]
[1765129642419,0.01956,90796.0,90795.0,1.13170378]
[1765129642648,0.01756,90796.0,90795.0,1.13170378]
[1765129642856,0.01756,90796.0,90795.0,1.16069131]
[1765129643071,0.01481343,90816.0,90807.0,0.02220398]
[1765129643282,0.01756,90815.0,90802.0,0.01101297]
[1765129643498,0.01756,90815.0,90810.0,0.00099999]
[1765129643705,0.01756,90815.0,90797.0,0.01101357]
[1765129643706,0.10962,90803.0,90797.0,0.01101357]
[1765129643922,0.01756,90802.0,90797.0,0.02311784]
[1765129644113,0.01756,90802.0,90801.0,0.02220398]
[1765129644334,0.01756,90802.0,90801.0,0.04532182]
[1765129645679,0.01756,90802.0,90801.0,1.12194982]
[1765129645883,0.01756,90802.0,90801.0,1.07127382]
[1765129646312,0.01756,90802.0,90801.0,0.32813482]
[1765129647125,0.01756,90802.0,90801.0,0.41840482]
[1765129648409,0.01756,90802.0,90801.0,0.32813482]
[1765129648792,0.01756,90802.0,90801.0,0.41840482]
[1765129649293,0.01756,90802.0,90801.0,0.44729903]
[1765129649882,0.0452,90870.0,90838.0,0.0110086]
[1765129650082,0.0452,90877.0,90870.0,0.00099999]
[1765129650335,0.0452,90877.0,90874.0,0.01100424]
[1765129650543,0.01756,90882.0,90877.0,0.01100388]
[1765129650721,0.01756,90882.0,90881.0,0.06438]